fUSD/lending_fUSD_20240525
["ID","MTS","AMOUNT","RATE_DAILY","PERIOD"]
[327920075,1716627043763,-352.18,0.00029753,2]
[327920076,1716627043773,-654.29,0.00029753,2]
[327920077,1716627043782,-163.63,0.00029753,2]
[327920078,1716627043791,-352.18,0.00029753,2]
[327920079,1716627043800,-346.09,0.00029753,2]
[327920080,1716627043809,-163.63,0.00029753,2]
[327920081,1716627043818,-163.63,0.00029753,2]
[327920082,1716627043828,-163.63,0.00029753,2]
[327920083,1716627043837,-162.73,0.00029753,2]
[327920084,1716627043846,-412.74,0.00029753,2]
[327920085,1716627043855,-1500.0,0.00029764,2]
[327920086,1716627043864,-150.0,0.00029776,2]
[327920087,1716627043874,-7500.0,0.00029778,2]
[327920089,1716627043883,-166.64757043,0.00029778,2]
[327920090,1716627043895,-8434.71127724,0.00029778,2]
[327920091,1716627043905,-163192.93020615,0.00029778,2]
[327920094,1716627046343,-164.22626434,0.00026941,2]
[327920095,1716627046352,-150.0,0.00029068,2]
[327920096,1716627046362,-163.63,0.00029068,2]
[327920097,1716627046371,-421.16,0.00029068,2]
[327920098,1716627046380,-352.18,0.00029068,2]
[327920099,1716627046390,-150.0,0.00029068,2]
[327920100,1716627046399,-150.0,0.00029068,2]
[327920101,1716627046408,-322.94373564,0.00029778,2]
[327920102,1716627046419,-6905.2,0.00029778,2]
[327920103,1716627046460,-822.64268602,0.00029778,2]
[327920104,1716627046471,-698.36394,0.00029778,2]
[327920109,1716627063417,174.7061953,0.000159,2]
[327920110,1716627068080,337.29571537,0.00017259,2]
[327920111,1716627114701,713.80457029,0.00017259,2]
[327920112,1716627187201,3938.0,0.000159,2]
[327920115,1716627710169,337.29571537,0.00017259,2]
[327920117,1716627882327,956.08147661,0.00016396,2]
[327920119,1716627981779,20076.86051452,0.00016396,2]
[327920125,1716628049747,293.02271139,0.00016396,2]
[327920126,1716628069677,292.90619603,0.00016396,2]
[327920127,1716628140709,337.29571537,0.00017259,2]
[327920150,1716628231775,-150.0,0.00019725,2]
[327920151,1716628231785,-155.0,0.0002,2]
[327920152,1716628231794,-155.0,0.00020655,2]
[327920153,1716628231803,-247.73,0.00020657,2]
[327920154,1716628231812,-150.322,0.00020657,2]
[327920155,1716628231821,-238.133,0.00020657,2]
[327920156,1716628231831,-150.413,0.00020657,2]
[327920157,1716628231840,-198.821,0.00020657,2]
[327920158,1716628231849,-150.0,0.00023657,2]
[327920159,1716628231858,-150.0,0.00023657,2]
[327920160,1716628231867,-166.66666666,0.000244,2]
[327920161,1716628231876,-153.30991186,0.00024744,2]
[327920162,1716628231886,-152.76235666,0.00024755,2]
[327920163,1716628231895,-152.76235666,0.00025375,2]
[327920164,1716628231905,-323.44,0.00025449,2]
[327920165,1716628231916,-152.76235666,0.00025776,2]
[327920166,1716628231925,-1000.0,0.00026,5]
[327920167,1716628231934,-152.76235666,0.00026634,2]
[327920168,1716628231943,-171.12,0.00026742,2]
[327920169,1716628231953,-389.09336346,0.00026793,2]
[327920186,1716628237903,-505.9575554,0.00019753,2]
[327920187,1716628237915,-2702.22081626,0.00019753,2]
[327920199,1716628240233,-4248.3044622,0.00019753,2]
[327920200,1716628240244,-110.90663654,0.00026793,2]
[327920201,1716628240254,-466.41,0.00026819,2]
[327920202,1716628240264,-250.0,0.00026825,2]
[327920203,1716628240274,-152.76235666,0.00026827,2]
[327920204,1716628240283,-200.0,0.00026842,2]
[327920205,1716628240293,-185.46,0.00026843,2]
[327920206,1716628240303,-250.0,0.00026847,2]
[327920207,1716628240313,-273.62,0.00026887,2]
[327920208,1716628240323,-250.0,0.00026936,2]
[327920209,1716628240333,-162.6,0.00026942,2]
[327920210,1716628240342,-278.41,0.00027029,2]
[327920211,1716628240351,-152.76235666,0.00027077,2]
[327920212,1716628240361,-1000.0,0.0002713,2]
[327920213,1716628240370,-432.12059606,0.000274,2]
[327920214,1716628240383,-1567.87940394,0.000274,2]
[327920215,1716628240392,-323.44,0.00027713,2]
[327920216,1716628240402,-337.29571537,0.00028144,2]
[327920217,1716628240413,-500.0,0.00028145,2]
[327920218,1716628240422,-101.79853819,0.00028145,2]
[327920219,1716628240616,-4878.11146181,0.00028145,2]
[327920220,1716628240631,-421.16,0.00028247,2]
[327920221,1716628240642,-42.87068275,0.00028247,2]
[327920223,1716628242582,-120.75931725,0.00028247,2]
[327920224,1716628242593,-150.0,0.00028247,2]
[327920225,1716628242602,-147.14068325,0.00028247,2]
[327920227,1716628243520,-2.85931675,0.00028247,2]
[327920228,1716628243531,-352.18,0.00028247,2]
[327920229,1716628243540,-421.16,0.00028247,2]
[327920230,1716628243550,-163.63,0.00028247,2]
[327920231,1716628243560,-150.0,0.00028247,2]
[327920232,1716628243570,-352.18,0.00028247,2]
[327920233,1716628243580,-150.0,0.00028247,2]
[327920234,1716628243589,-163.63,0.00028247,2]
[327920235,1716628243598,-421.16,0.00028247,2]
[327920236,1716628243607,-150.0,0.00028247,2]
[327920237,1716628243616,-150.0,0.00028247,2]
[327920238,1716628243628,-421.16,0.00028247,2]
[327920239,1716628243637,-163.63,0.00028247,2]
[327920240,1716628243646,-150.0,0.00028247,2]
[327920241,1716628243655,-150.0,0.00028247,2]
[327920242,1716628243664,-163.63,0.00028247,2]
[327920243,1716628243674,-421.16,0.00028247,2]
[327920244,1716628243683,-150.0,0.00028247,2]
[327920245,1716628243693,-150.0,0.00028247,2]
[327920246,1716628243702,-421.16,0.00028247,2]
[327920247,1716628243713,-150.0,0.00028247,2]
[327920248,1716628243723,-150.0,0.00028247,2]
[327920249,1716628243732,-150.0,0.00028247,2]
[327920250,1716628243741,-421.16,0.00028247,2]
[327920251,1716628243750,-150.0,0.00028247,2]
[327920252,1716628243759,-421.16,0.00028247,2]
[327920253,1716628243770,-150.0,0.00028247,2]
[327920254,1716628243780,-154.54,0.00028247,2]
[327920255,1716628243789,-278.41,0.00028381,2]
[327920256,1716628243799,-500.0,0.00028533,2]
[327920257,1716628243808,-150.0,0.00029068,2]
[327920258,1716628243817,-421.16,0.00029068,2]
[327920259,1716628243827,-150.0,0.00029068,2]
[327920260,1716628243836,-421.16,0.00029068,2]
[327920261,1716628243845,-300.0,0.00029068,2]
[327920262,1716628243854,-152.76235666,0.00029114,2]
[327920263,1716628243863,-152.76235666,0.00029229,2]
[327920264,1716628243872,-466.41,0.00029559,2]
[327920265,1716628243882,-200.0,0.0002957,2]
[327920266,1716628243891,-164.22626434,0.00029678,2]
[327920267,1716628243900,-300.0,0.00029706,2]
[327920268,1716628243909,-278.41,0.00029732,2]
[327920269,1716628243918,-181.94645704,0.00029738,2]
[327920270,1716628243926,-4981.44,0.00029739,2]
[327920271,1716628243935,-160.1442038,0.00029752,2]
[327920272,1716628243944,-1500.0,0.00029755,2]
[327920273,1716628243954,-1164.0364904,0.00029775,2]
[327920274,1716628243963,-882.82313316,0.00029776,2]
[327920275,1716628243972,-233.45111,0.00029776,2]
[327920276,1716628243981,-1500.0,0.00029777,2]
[327920277,1716628243990,-10730.41978525,0.00029778,2]
[327920278,1716628244076,-259.8,0.00029778,2]
[327920279,1716628244087,-444.24779552,0.00029778,2]
[327920280,1716628244098,-5294.62387193,0.00029778,2]
[327920281,1716628244109,-4560.23792118,0.00029778,2]
[327920283,1716628245487,-150.0,0.00028247,2]
[327920284,1716628245497,-421.16,0.00028247,2]
[327920285,1716628245507,-15484.15665473,0.00029778,2]
[327920286,1716628245626,-3453.4431,0.00029778,2]
[327920287,1716628245867,-17072.54756419,0.00029778,2]
[327920288,1716628245879,-4587.62418501,0.00029778,2]
[327920289,1716628245891,-1873.50000005,0.00029778,2]
[327920292,1716628351400,326.2009179,0.00017259,2]
[327920293,1716628372786,154.3,0.00013973,2]
[327920294,1716628391843,3830.0,0.000159,2]
[327920295,1716628882873,4116.59122665,0.00017259,2]
[327920297,1716628908846,173.85,0.00013973,2]
[327920308,1716629431698,-155.0,0.0002,2]
[327920309,1716629431708,-155.0,0.0002,2]
[327920310,1716629431717,-154.3,0.00020447,2]
[327920311,1716629431727,-57.06640746,0.00022,2]
[327920312,1716629431738,-731.04623216,0.00022,2]
[327920313,1716629431748,-3.74213676,0.00022613,2]
[327920314,1716629431782,-149.89066069,0.00022613,2]
[327920315,1716629431793,-199.4,0.00022613,7]
[327920316,1716629431802,-153.63279745,0.00025536,2]
[327920317,1716629431812,-327.22,0.00025855,2]
[327920318,1716629431821,-154.3,0.00026921,2]
[327920319,1716629431833,-153.63279745,0.00026923,2]
[327920320,1716629431843,-153.63279745,0.0002738,2]
[327920321,1716629431852,-178.95534258,0.000274,2]
[327920322,1716629431862,-180.81875071,0.000274,2]
[327920323,1716629431874,-1819.18124929,0.000274,2]
[327920324,1716629431883,-154.79,0.00027553,2]
[327920325,1716629431893,-162.6,0.0002758,2]
[327920326,1716629431903,-122.90850927,0.00027644,2]
[327920327,1716629431915,-127.09149073,0.00027644,2]
[327920328,1716629431924,-200.0,0.0002766,2]
[327920329,1716629431933,-472.90850927,0.00027662,2]
[327920330,1716629431944,-27.09149073,0.00027662,2]
[327920331,1716629431958,-185.6,0.00027669,2]
[327920332,1716629431967,-1000.0,0.00027738,2]
[327920333,1716629431976,-250.0,0.00027841,2]
[327920334,1716629431986,-327.22,0.00028119,2]
[327920335,1716629431995,-167.0,0.00028584,2]
[327920336,1716629432004,-177.13,0.00028705,2]
[327920337,1716629432014,-157.15625086,0.00029561,2]
[327920338,1716629432027,-200.0,0.0002957,2]
[327920339,1716629432037,-301.93626763,0.00029629,2]
[327920340,1716629432046,-150.0,0.00029668,2]
[327920341,1716629432055,-150.0,0.0002967,2]
[327920342,1716629432064,-826.36,0.00029753,2]
[327920343,1716629432073,-1226.49,0.00029753,2]
[327920344,1716629432083,-1746.04,0.00029753,2]
[327920345,1716629432092,-617.9,0.00029753,2]
[327920346,1716629432102,-415.94,0.00029753,2]
[327920347,1716629432112,-415.94,0.00029753,2]
[327920348,1716629432121,-415.94,0.00029753,2]
[327920349,1716629432130,-415.94,0.00029753,2]
[327920350,1716629432139,-415.94,0.00029753,2]
[327920351,1716629432148,-415.94,0.00029753,2]
[327920352,1716629432157,-415.94,0.00029753,2]
[327920353,1716629432167,-1500.0,0.00029754,2]
[327920354,1716629432176,-57065.40804897,0.00029759,2]
[327920355,1716629432187,-563.456,0.00029759,2]
[327920356,1716629432216,-280.21501959,0.00029759,2]
[327920357,1716629432227,-966.43463374,0.00029759,2]
[327920358,1716629432251,-5413.97435113,0.00029759,2]
[327920376,1716629437678,-539.00383144,0.00019753,2]
[327920377,1716629437689,-5110.42326782,0.00019753,2]
[327920378,1716629437699,-7023.42459331,0.00029759,2]
[327920379,1716629437834,-1745.00685326,0.00029759,2]
[327920380,1716629437844,-164.22626434,0.00029769,2]
[327920381,1716629437853,-1542.59205,0.00029778,2]
[327920382,1716629437863,-1018.5319291,0.00029779,2]
[327920383,1716629437873,-214.0,0.00029779,2]
[327920384,1716629437883,-198.93762783,0.0002978,2]
[327920385,1716629437895,-315.19030927,0.0002978,2]
[327920386,1716629437907,-1178.7170981,0.0002978,2]
[327920387,1716629437936,-2140.84856898,0.0002978,2]
[327920388,1716629437946,-195.92344364,0.0002978,2]
[327920389,1716629437960,-5623.1408515,0.0002978,2]
[327920390,1716629437969,-180.74659826,0.0002978,2]
[327920391,1716629437979,-1500.0,0.00029783,2]
[327920392,1716629437989,-1500.0,0.00029796,2]
[327920394,1716629437998,-4017.223184,0.000298,2]
[327920396,1716629438008,-455.0,0.000298,2]
[327920398,1716629438017,-455.0,0.000298,2]
[327920400,1716629438028,-455.0,0.000298,2]
[327920401,1716629438039,-455.0,0.000298,2]
[327920402,1716629438048,-455.0,0.000298,2]
[327920403,1716629438061,-455.0,0.000298,2]
[327920404,1716629438071,-455.0,0.000298,2]
[327920405,1716629438080,-455.0,0.000298,2]
[327920406,1716629438090,-455.0,0.000298,2]
[327920408,1716629438100,-455.0,0.000298,2]
[327920410,1716629438109,-150.0,0.000298,6]
[327920411,1716629438118,-500.0,0.00029808,2]
[327920413,1716629438129,-4914.6,0.00029815,2]
[327920414,1716629438139,-190.69330292,0.00029849,2]
[327920415,1716629438148,-291.0547994,0.00029849,2]
[327920416,1716629438157,-643.6798664,0.00029849,2]
[327920417,1716629438167,-8445.3487772,0.00029849,2]
[327920418,1716629438177,-347.0284753,0.00029849,2]
[327920419,1716629438186,-291.0547994,0.00029859,2]
[327920420,1716629438196,-547.1278864,0.00029859,2]
[327920421,1716629438207,-7178.5464606,0.00029859,2]
[327920422,1716629438216,-347.0284753,0.00029859,2]
[327920423,1716629438226,-291.0547994,0.0002986,2]
[327920424,1716629438235,-291.0547994,0.0002986,2]
[327920425,1716629438245,-450.5759065,0.0002986,2]
[327920426,1716629438254,-354.0239265,0.0002986,2]
[327920427,1716629438264,-5911.744144,0.0002986,2]
[327920428,1716629438274,-4644.9418274,0.0002986,2]
[327920429,1716629438284,-347.0284753,0.0002986,2]
[327920430,1716629438293,-347.0284753,0.0002986,2]
[327920431,1716629438303,-151.21,0.0002987,2]
[327920432,1716629438312,-244.3065424,0.0002987,2]
[327920433,1716629438321,-297.07172306,0.00029876,2]
[327920434,1716629438331,-258.30982397,0.00029876,2]
[327920435,1716629438340,-3831.2367923,0.00029876,2]
[327920436,1716629438349,-1329.89854075,0.00029878,2]
[327920437,1716629438362,-153.41055242,0.00029878,2]
[327920438,1716629438371,-427.41082594,0.00029878,2]
[327920439,1716629438381,-111.47013357,0.00029878,2]
[327920465,1716629440928,-688.83485775,0.00029878,2]
[327920466,1716629440940,-564.45310741,0.00029878,2]
[327920467,1716629440999,-34876.0,0.00029878,2]
[327920468,1716629441057,-42658.13162488,0.00029878,2]
[327920469,1716629441118,-1610.79772068,0.00029878,2]
[327920479,1716629443411,-155.0,0.00029877,2]
[327920480,1716629443422,-1893.83681423,0.00029878,2]
[327920481,1716629443435,-3005.0,0.00029878,2]
[327920485,1716629475919,337.29571537,0.00017259,2]
[327920494,1716629575403,150.38,0.00013973,2]
[327920495,1716629596390,3447.0,0.000163,2]
[327920496,1716629596989,3102.0,0.000163,2]
[327920498,1716629624800,804670.591331,0.00013,2]
[327920506,1716629919790,282.1196435,0.00017798,2]
[327920507,1716629921237,753.21042176,0.00017998,2]
[327920509,1716630051000,150.54,0.00013973,2]
[327920511,1716630095068,967.11555483,0.00017259,2]
[327920519,1716630379130,738.0,0.000163,2]
[327920520,1716630379571,701.0,0.000163,2]
[327920521,1716630390235,885.6821484,0.00017259,2]
[327920526,1716630633456,-154.20842835,0.000199,2]
[327920529,1716630633465,-298.51021514,0.00019999,2]
[327920532,1716630633477,-701.48978486,0.00019999,2]
[327920534,1716630633487,-838.15925404,0.0002,4]
[327920537,1716630633528,-582.92504737,0.0002,4]
[327920538,1716630633539,-571.61940899,0.0002,4]
[327920539,1716630633551,-909.67996557,0.0002,4]
[327920540,1716630633608,-9768.13277904,0.0002,4]
[327920541,1716630633620,-628.12349577,0.0002,4]
[327920542,1716630633631,-22037.70275911,0.0002,4]
[327920543,1716630633901,-1044.54849197,0.0002,4]
[327920574,1716630637957,-151212.25134666,0.0002,4]
[327920576,1716630637967,-155.0,0.0002,2]
[327920578,1716630637976,-150.38,0.00022174,2]
[327920580,1716630637985,-1000.0,0.0002358,2]
[327920581,1716630637995,-1644.0,0.00024023,2]
[327920583,1716630638004,-1225.0,0.00024023,2]
[327920584,1716630638013,-440.0,0.00024023,2]
[327920585,1716630638022,-1264.0,0.00024023,2]
[327920586,1716630638032,-12099.18517274,0.00024023,2]
[327920587,1716630638044,-2374.95090152,0.00024023,2]
[327920588,1716630638055,-3848.99059304,0.00024023,2]
[327920589,1716630638265,-19596.8733327,0.00024023,2]
[327920590,1716630638274,-289.0,0.00024023,2]
[327920591,1716630638283,-150.0,0.00024023,2]
[327920592,1716630638292,-5757.0,0.00024023,2]
[327920593,1716630638302,-421.541,0.00024023,2]
[327920594,1716630638311,-170.795315,0.00024889,2]
[327920595,1716630638321,-170.79531491,0.00024889,2]
[327920596,1716630638335,-170.79531491,0.00024889,2]
[327920597,1716630638344,-359.33,0.00024965,2]
[327920598,1716630638353,-219.47923133,0.00024975,2]
[327920599,1716630638362,-170.79531491,0.00025067,2]
[327920600,1716630638372,-154.03121003,0.00026334,2]
[327920601,1716630638381,-154.03121003,0.00026357,2]
[327920602,1716630638390,-154.03121003,0.00026559,2]
[327920603,1716630638400,-335.65,0.00026872,2]
[327920604,1716630638413,-160.14420379,0.00026903,2]
[327920605,1716630638424,-1438.54,0.00026906,2]
[327920606,1716630638433,-1000.0,0.00026942,2]
[327920607,1716630638444,-200.0,0.00026999,2]
[327920608,1716630638453,-906.0,0.00027023,2]
[327920609,1716630638462,-439.0,0.00027023,2]
[327920610,1716630638471,-1021.645,0.00027023,2]
[327920611,1716630638481,-7700.28,0.00027023,2]
[327920612,1716630638491,-235.291,0.00027023,2]
[327920613,1716630638500,-11866.9435476,0.00027045,2]
[327920630,1716630640827,-751.5522059,0.00027045,2]
[327920631,1716630643097,-4989.85829519,0.00027045,2]
[327920638,1716630643484,-1898.94765408,0.00027045,2]
[327920639,1716630643496,-3428.28829723,0.00027045,2]
[327920640,1716630643505,-4736.61,0.00027053,2]
[327920641,1716630643515,-250.0,0.00027058,2]
[327920642,1716630643524,-250.0,0.00027067,2]
[327920643,1716630643534,-250.0,0.00027083,2]
[327920644,1716630643543,-500.0,0.0002718,2]
[327920645,1716630643552,-200.0,0.00027182,2]
[327920646,1716630643562,-359.33,0.00027229,2]
[327920647,1716630643572,-171.85,0.00027246,2]
[327920648,1716630643581,-171.21,0.00027271,2]
[327920649,1716630643592,-3981.30697897,0.00027284,2]
[327920651,1716630644038,-116.28302103,0.00027284,2]
[327920652,1716630644048,-178.0,0.000274,2]
[327920653,1716630644058,-842.0,0.000274,2]
[327920654,1716630644067,-160.23,0.00027428,2]
[327920655,1716630644076,-170.38,0.00027726,2]
[327920656,1716630644087,-154.03121003,0.00027854,2]
[327920657,1716630644096,-136.50108369,0.00028231,2]
[327920658,1716630644109,-13.49891631,0.00028231,2]
[327920659,1716630644118,-4736.61,0.00028405,2]
[327920660,1716630644128,-165.31,0.00028494,2]
[327920661,1716630644138,-185.6,0.00028721,2]
[327920662,1716630644147,-154.03121003,0.00028841,2]
[327920663,1716630644157,-154.72200276,0.00029371,2]
[327920664,1716630644166,-154.03121007,0.000294,2]
[327920665,1716630644175,-5081.65664504,0.00029419,2]
[327920666,1716630644184,-359.33,0.00029493,2]
[327920667,1716630644193,-157.15625086,0.00029579,2]
[327920668,1716630644203,-1285.49337,0.0002958,2]
[327920669,1716630644212,-150.0,0.00029601,2]
[327920670,1716630644222,-180.0,0.00029601,2]
[327920671,1716630644232,-200.0,0.0002963,2]
[327920672,1716630644242,-1438.54,0.00029646,2]
[327920673,1716630644251,-150.0,0.00029648,2]
[327920674,1716630644261,-150.0,0.0002972,2]
[327920675,1716630644271,-337.28,0.00029743,10]
[327920676,1716630644280,-151.42,0.00029753,2]
[327920677,1716630644290,-150.0,0.00029753,2]
[327920678,1716630644300,-278.92,0.00029753,2]
[327920679,1716630644310,-150.0,0.00029753,2]
[327920680,1716630644319,-150.0,0.00029753,2]
[327920681,1716630644332,-150.0,0.00029753,2]
[327920682,1716630644344,-150.0,0.00029753,2]
[327920683,1716630644353,-150.0,0.00029753,2]
[327920684,1716630644363,-150.0,0.00029753,2]
[327920685,1716630644373,-150.0,0.00029753,2]
[327920686,1716630644383,-150.0,0.00029753,2]
[327920687,1716630644393,-150.0,0.00029753,2]
[327920688,1716630644402,-304.89,0.00029753,2]
[327920689,1716630644415,-150.0,0.00029753,2]
[327920690,1716630644425,-265.99208493,0.00029753,2]
[327920835,1716631832327,-154.3,0.00013973,2]
[327920836,1716631832337,-173.85,0.00013973,2]
[327920837,1716631832346,-537.31028817,0.000162,2]
[327920838,1716631832358,-1410.39221183,0.000162,2]
[327920839,1716631832368,-154.20842833,0.000162,2]
[327920840,1716631832377,-3117.0,0.000163,2]
[327920841,1716631832387,-151.0,0.0001867,3]
[327920842,1716631832395,-300.0,0.00019899,2]
[327920843,1716631832405,-1799.57,0.0002,2]
[327920844,1716631832415,-499.99,0.0002,2]
[327920845,1716631832424,-155.0,0.0002,2]
[327920846,1716631832433,-155.0,0.0002,2]
[327920847,1716631832443,-1050.0,0.00021,2]
[327920848,1716631832453,-154.3,0.00021661,2]
[327920849,1716631832463,-358.461776,0.00022825,2]
[327920850,1716631832472,-154.20842833,0.0002294,2]
[327920851,1716631832482,-339.19,0.00023621,2]
[327920852,1716631832491,-1644.0,0.00024023,2]
[327920853,1716631832500,-1138.62439791,0.00024023,2]
[327920854,1716631832513,-86.37560209,0.00024023,2]
[327920855,1716631832523,-1264.0,0.00024023,2]
[327920856,1716631832532,-440.0,0.00024023,2]
[327920857,1716631832546,-5759.0,0.00024023,2]
[327920858,1716631832559,-5134.0,0.00024023,2]
[327920859,1716631832569,-12099.185,0.00024023,2]
[327920860,1716631832578,-500.0,0.00025484,2]
[327920861,1716631832588,-250.0,0.00025505,2]
[327920862,1716631832598,-800.0,0.00025636,2]
[327920863,1716631832608,-366.66,0.00025663,2]
[327920864,1716631832618,-793.1,0.00025667,2]
[327920865,1716631832627,-250.0,0.00025697,2]
[327920866,1716631832637,-250.0,0.00025753,2]
[327920867,1716631832648,-9892.71,0.00025786,2]
[327920868,1716631832657,-3274.35,0.00025786,2]
[327920869,1716631832667,-185.6,0.00025824,2]
[327920870,1716631832676,-339.19,0.00025885,2]
[327920871,1716631832686,-154.72200276,0.00026087,2]
[327920872,1716631832698,-169.11,0.0002609,2]
[327920873,1716631832707,-270.27,0.00026639,2]
[327920874,1716631832717,-154.72200276,0.00026663,2]
[327920875,1716631832726,-7689.17,0.00026864,2]
[327920876,1716631832736,-425.07647143,0.00026887,2]
[327920877,1716631832745,-200.0,0.00026964,2]
[327920878,1716631832754,-153.30685889,0.00026968,2]
[327920879,1716631832764,-1000.0,0.000274,2]
[327920880,1716631832774,-171.21,0.00027444,2]
[327920881,1716631832783,-169.11,0.00027526,2]
[327920882,1716631832793,-2841.96,0.00027914,2]
[327920885,1716631832802,-200.0,0.00027936,2]
[327920888,1716631832812,-765.09,0.00028,10]
[327920891,1716631832821,-171.85,0.00028045,2]
[327920893,1716631832831,-153.02,0.00028089,2]
[327920896,1716631832840,-339.19,0.00028149,2]
[327920899,1716631832850,-153.02,0.00028159,2]
[327920902,1716631832859,-153.02,0.00028229,2]
[327920905,1716631832868,-173.35,0.00028271,2]
[327920908,1716631832878,-1234.0,0.000284,2]
[327920911,1716631832887,-793.1,0.00028407,2]
[327920914,1716631832897,-167.84,0.00028658,2]
[327920917,1716631832909,-169.78,0.00028723,2]
[327920920,1716631832921,-1355.9014,0.0002878,2]
[327920923,1716631832931,-452.4344,0.0002878,2]
[327920926,1716631832941,-323.41140232,0.0002878,2]
[327920929,1716631832950,-3748.76056766,0.0002878,2]
[327920932,1716631832960,-2667.1372,0.0002878,2]
[327920935,1716631832970,-161.27564038,0.000288,2]
[327920938,1716631832979,-800.0,0.00028841,2]
[327920941,1716631832988,-531.78420323,0.00028879,2]
[327920944,1716631832997,-411.59134999,0.00028879,2]
[327920947,1716631833007,-500.0,0.00028879,2]
[327920949,1716631833016,-500.0,0.00028879,2]
[327920951,1716631833026,-78.91614681,0.00028879,2]
[327920953,1716631833038,-246.49264317,0.00028879,2]
[327920955,1716631833049,-6266.49800189,0.0002888,2]
[327920958,1716631833065,-479.88499692,0.0002888,2]
[327920961,1716631833088,-317.65,0.0002888,2]
[327920963,1716631833101,-32044.23794038,0.0002888,2]
[327920966,1716631833112,-75241.2505588,0.0002888,2]
[327921179,1716631838481,-6787.777943,0.0002888,15]
[327921180,1716631838492,-379.12344976,0.0002888,15]
[327921181,1716631838650,-1184.509,0.0002888,15]
[327921182,1716631838761,-56108.42920731,0.0002888,15]
[327921183,1716631838775,-624.17207,0.0002888,15]
[327921184,1716631838788,-2299.64277053,0.0002888,15]
[327921190,1716631841560,-442.99999994,0.0002249,2]
[327921191,1716631841589,-393.29106466,0.0002249,2]
[327921192,1716631841599,-375.38893534,0.0002888,15]
[327921193,1716631841792,-113162.92697193,0.0002888,15]
[327921194,1716631841805,-2266.1550012,0.0002888,15]
[327921213,1716631846405,-155.0,0.00028879,2]
[327921214,1716631846417,-846.69816861,0.0002888,15]
[327921215,1716631846429,-1733.80121752,0.0002888,15]
[327921216,1716631846440,-710.33,0.0002888,15]
[327921217,1716631846498,-229904.37368062,0.0002888,15]
[327921218,1716631846594,-4360.93,0.0002888,15]
[327921219,1716631846608,-1419.962,0.0002888,15]
[327921220,1716631846620,-1251.58100805,0.0002888,15]
[327921221,1716631846633,-20731.3204527,0.0002888,15]
[327921222,1716631846686,-802.64257861,0.0002888,15]
[327921297,1716633031533,-516.73760143,0.00013771,2]
[327921301,1716633031543,-154.20842833,0.00013772,2]
[327921303,1716633031554,-11150.7204,0.00013872,2]
[327921304,1716633031563,-150.38,0.00013973,2]
[327921306,1716633031574,-3098.0,0.000163,2]
[327921308,1716633031583,-1050.41,0.00019726,2]
[327921310,1716633031593,-150.38,0.00023435,2]
[327921312,1716633031602,-499.99,0.00023435,2]
[327921314,1716633031612,-150.99,0.00023435,2]
[327921315,1716633031621,-361.21,0.00024675,2]
[327921316,1716633031630,-154.72200276,0.00024751,2]
[327921317,1716633031640,-1285.788,0.00025611,2]
[327921318,1716633031650,-33341.039,0.00025611,2]
[327921319,1716633031661,-154.72200276,0.00025878,2]
[327921320,1716633031671,-569.00722776,0.0002599,2]
[327921321,1716633031680,-200.0,0.00026362,2]
[327921322,1716633031690,-500.0,0.00026808,2]
[327921323,1716633031700,-183.33,0.00026849,2]
[327921324,1716633031711,-250.0,0.0002688,2]
[327921325,1716633031721,-361.21,0.00026939,2]